Cogmind - Beta 14 @@@ ROGUE MODE // 2024.09.22 @ 20:32:18 Player: ExAnimoso Result: Destroyed by XJ-KFI(R) with Subdweller Beam Cannon Performance ------------- Evolutions (0) 0 Regions Visited (3) 600 Robots Destroyed (29) 145 Value Destroyed (600) 600 Prototype IDs (2) 40 Alien Tech Used (0) 0 Bonus (0) 0 TOTAL SCORE: 1385 Bonus ------- None Cogmind --------- Core Integrity 0/250 Matter 300/300 Energy 125/125 System Corruption 0% Temperature Cool (9) Movement Walking (260) Ox2 Location -10/Subcaves Parts ------- > --- POWER (1) -------- Light Ion Engine > --- PROPULSION (2) --- Aluminum Leg Aluminum Leg > --- UTILITY (2) ------ High-capacity Storage Unit Hardened Light Armor Plating > --- WEAPON (2) ------- Assault Rifle Assault Rifle > --- INVENTORY (20) --- Light Nuclear Core Light Treads Aluminum Leg Huge Storage Unit Small Matter Pod (50) Sensor Array Propulsion Shielding Hardened Light Armor Plating Makeshift Light Armor Plating Scrap Shield Tractor Beam Particle Gun Subdweller Machine Gun Slug Cannon Scrap Shield Fragment (47) Peak State ------------ > --- POWER ------------ Light Ion Engine > --- PROPULSION ------- Aluminum Leg Aluminum Leg > --- UTILITY ---------- High-capacity Storage Unit Hardened Light Armor Plating > --- WEAPON ----------- Assault Rifle Assault Rifle > --- INVENTORY -------- Light Nuclear Core Light Treads Aluminum Leg Huge Storage Unit Small Matter Pod Sensor Array Propulsion Shielding Hardened Light Armor Plating Makeshift Light Armor Plating Scrap Shield Tractor Beam Particle Gun Subdweller Machine Gun Slug Cannon Scrap Shield Fragment [Rating: 11] Favorites ----------- Power Ion Engine Engine Ion Engine Propulsion Light Treads Treads Light Treads Leg Aluminum Leg Utility High-capacity Storage Unit Device Sensor Array Storage High-capacity Storage Unit Protection Hardened Light Armor Plating Weapon Assault Rifle Energy Gun Particle Gun Ballistic Gun Assault Rifle Launcher Grenade Launcher Build | -11 -10 -10 -10 ------- Run | Yrd Mat Min Sub Slots Evolved . | . . . . Power . | . . . . Propulsion . | . . . . Utility . | . . . . Weapon . | . . . . Parts Attached 17 | 6 3 1 7 Power 2 | 1 . . 1 Engine 2 | 1 . . 1 Core . | . . . . Reactor . | . . . . Propulsion 4 | 2 . . 2 Treads 2 | 2 . . . Leg 2 | . . . 2 Wheel . | . . . . Hover . | . . . . Flight . | . . . . Utility 4 | 1 2 . 1 Device 1 | . 1 . . Storage 2 | 1 1 . . Processor . | . . . . Hackware . | . . . . Protection 1 | . . . 1 Artifact . | . . . . Weapon 7 | 2 1 1 3 Energy Gun 1 | . . . 1 Energy Cannon . | . . . . Ballistic Gun 5 | 2 1 . 2 Ballistic Cannon . | . . . . Launcher 1 | . . 1 . Special Weapon . | . . . . Impact Weapon . | . . . . Slashing Weapon . | . . . . Piercing Weapon . | . . . . Special Melee Weapon . | . . . . Unidentified Prototypes . | . . . . Parts Lost 6 | . . . 6 Power 1 | . . . 1 Propulsion 2 | . . . 2 Utility 1 | . . . 1 Weapon 2 | . . . 2 Highest Loss Streak 6 | . . . 6 To Critical Strikes . | . . . . Average Slot Usage (%) 97 | . 97 100 97 Engine 13 | . 14 14 13 Treads 17 | . 28 28 . Leg 9 | . . . 26 Device 7 | . 11 14 . Storage 14 | . 14 14 14 Protection 4 | . . . 13 Ballistic Gun 26 | . 27 26 25 Peak Build Rating 11 | 6 9 9 11 Average Rating 8 | 4 7 9 10 On Entrance 6 | . 6 9 9 Naked Turns . | . . . . Heaviest Build 53 | 14 50 51 53 Greatest Support 40 | 40 40 40 40 Greatest Overweight (x) 15 | 2 1 1 15 Average Overweight (x) 1 | . . 1 2 Largest Inventory Capacity 20 | 8 20 20 20 Average Capacity 17 | 7 15 20 20 Most Carried 16 | 6 16 16 16 Average Carried 11 | 3 9 16 13 Final Capacity 20 | 8 20 20 20 Final Carried 16 | 4 16 16 16 Class Distribution -------------------- 100% | Mutant Dominant Class ---------------- Mutant | -10/Materials Mutant | -10/Mines Mutant | -10/Subcaves Resources | -11 -10 -10 -10 ----------- Run | Yrd Mat Min Sub Matter Collected 817 | 165 419 42 191 Remotely . | . . . . Salvage Created 628 | . 458 42 128 Parts 62 | . 42 10 10 Haulers Intercepted . | . . . . Recyclers Shooed . | . . . . Parts Field Recycled . | . . . . Retrieved Matter . | . . . . Parts Self-Destructed 11 | . . . 11 Prevented . | . . . . Kills | -11 -10 -10 -10 ------- Run | Yrd Mat Min Sub Combat Hostiles Destroyed 25 | . 16 3 6 Guns 25 | . 16 3 6 Classes Destroyed 5 | . 3 1 1 Tunneler 1 | . . 1 . Watcher 3 | . 3 . . Swarmer 14 | . 8 3 3 Grunt 8 | . 8 . . Subdweller 3 | . . . 3 Best Kill Streak 5 | . 5 2 3 Combat Bots Only 5 | . 5 2 3 Max Kills in Single Turn 2 | . 2 1 1 Gunslinging 1 | . 1 . . Exploded . | . . . . Melee . | . . . . Uniques/NPCs Destroyed . | . . . . Combat | -11 -10 -10 -10 -------- Run | Yrd Mat Min Sub Hostile Shots Fired 116 | . 65 15 36 Missed 41 | . 24 5 12 Damage Taken 1166 | . 403 81 682 Core 259 | . 77 8 174 Absorbed by Shields . | . . . . Regen/Repaired (Parts) 73 | . 73 . . Core Remaining (%) 100 | 100 . . . Volleys Fired 77 | . 49 6 22 Largest 2 | . 2 2 2 Hottest 85 | . 40 40 85 Shots Fired 145 | . 98 10 37 Gun 142 | . 98 8 36 Cannon . | . . . . Launcher 3 | . . 2 1 Special . | . . . . Kinetic 133 | . 98 8 27 Thermal 9 | . . . 9 Explosive 3 | . . 2 1 Electromagnetic . | . . . . Robot Hit Streak 16 | . 10 5 16 Robot Miss Streak 5 | . 5 1 2 Penetration Max . | . . . . Secondary Targets 2 | . 2 . . Max Gunslinging Chain 1 | . 1 . . Shots Hit Robots 88 | . 55 5 28 Core Hits 40 | . 27 4 9 Critical Kills . | . . . . Critical Parts Destroyed . | . . . . Critical Strikes . | . . . . Melee Attacks . | . . . . Impact . | . . . . Slashing . | . . . . Piercing . | . . . . Sneak Attacks . | . . . . Combat Hostiles . | . . . . Follow-up Attacks . | . . . . Damage Inflicted 1319 | . 749 156 414 Guns 1192 | . 749 69 374 Cannons . | . . . . Explosions 127 | . . 87 40 Melee . | . . . . Ramming . | . . . . Kinetic 1043 | . 749 69 225 Thermal 149 | . . . 149 Explosive 127 | . . 87 40 Electromagnetic . | . . . . Impact . | . . . . Slashing . | . . . . Piercing . | . . . . Highest Corruption . | . . . . Average Corruption . | . . . . Corruption Purged . | . . . . Corruption Blocked . | . . . . Overload Shots . | . . . . Overflow Damage . | . . . . Projectiles . | . . . . Explosions . | . . . . Melee . | . . . . Knockbacks . | . . . . Impact . | . . . . Kinetic . | . . . . Secondary . | . . . . Self-Inflicted Damage . | . . . . Shots . | . . . . Rammed 1 | . 1 . . Targets Rammed 1 | . 1 . . Kicked . | . . . . Crushed . | . . . . Highest Temperature 2 | . 2 . . Average Temperature 2 | . 2 . . Received Heat Transfer 177 | . 132 . 45 Siege Activations . | . . . . Robots Corrupted . | . . . . Combat Hostiles . | . . . . Parts Fried . | . . . . Impact Corruptions . | . . . . Robots Melted . | . . . . Combat Hostiles . | . . . . Parts Melted . | . . . . Heat Transferred 333 | . . . 333 Parts Sabotaged . | . . . . Parts Stolen . | . . . . Parts Stripped . | . . . . Power Chain Reactions . | . . . . Alert | -11 -10 -10 -10 ------- Run | Yrd Mat Min Sub Peak Influence 355 | . 355 161 . Initial 65 | . . 65 . Average 166 | . 181 123 . Maximum Alert Level 1 | . 1 . . Low Security (%) 65 | 100 58 100 . Level 1 34 | . 41 . . Level 2 . | . . . . Level 3 . | . . . . Level 4 . | . . . . Level 5 . | . . . . High Security . | . . . . Max Security . | . . . . Squads Dispatched 4 | . 4 . . Investigation 2 | . 2 . . Extermination . | . . . . Reinforcement 2 | . 2 . . Assault . | . . . . Garrison . | . . . . Intercept . | . . . . Searches Triggered . | . . . . Construction Impeded . | . . . . Haulers Reinforced . | . . . . Active Scanning Responses . | . . . . Cargo Convoy Interrupts . | . . . . Stealth | -11 -10 -10 -10 --------- Run | Yrd Mat Min Sub Distress Signals 1 | . 1 . . Communications Jammed . | . . . . Distress Signals . | . . . . Times Spotted 36 | . 25 4 7 Peak Tracking Total 7 | . 7 3 3 Tactical Retreats 3 | . 2 1 . Traps | -11 -10 -10 -10 ------- Run | Yrd Mat Min Sub Traps Triggered . | . . . . Indirectly . | . . . . Trap Hack Attempts . | . . . . Triggered . | . . . . Disarmed . | . . . . Reprogrammed . | . . . . Reused . | . . . . Traps Extracted . | . . . . Installed . | . . . . Triggered . | . . . . Machines | -11 -10 -10 -10 ---------- Run | Yrd Mat Min Sub Machines Disabled . | . . . . Max in Single Turn . | . . . . Machines Repaired . | . . . . Machines Dismantled . | . . . . Machines Sabotaged . | . . . . Overloaded Fab Kills . | . . . . Hacking | -11 -10 -10 -10 --------- Run | Yrd Mat Min Sub Machines Accessed 7 | . 6 . 1 Terminals 4 | . 4 . . Fabricators . | . . . . Repair Stations 1 | . 1 . . Recycling Units 1 | . 1 . . Scanalyzers . | . . . . Garrison Access . | . . . . Total Hacks 21 | . 18 . 3 Successful 16 | . 13 . 3 Failed 5 | . 5 . . Catastrophic 1 | . 1 . . Database Lockouts . | . . . . Manual 11 | . 11 . . Terminals 13 | . 13 . . Fabricators . | . . . . Repair Stations 2 | . 2 . . Recycling Units 3 | . 3 . . Scanalyzers . | . . . . Garrison Access . | . . . . Terminal Hacks 11 | . 8 . 3 Record 3 | . . . 3 Part Schematic 1 | . 1 . . Robot Analysis 4 | . 4 . . Prototype ID Bank 1 | . 1 . . Locate Traps 1 | . 1 . . Hauler Manifests 1 | . 1 . . Fabricator Hacks . | . . . . Repair Station Hacks 2 | . 2 . . Scan Component 1 | . 1 . . Repair 1 | . 1 . . Recycling Unit Hacks 3 | . 3 . . Process 1 | . 1 . . Report Inventory 2 | . 2 . . Scanalyzer . | . . . . Garrison Access Hacks . | . . . . Unauthorized Hacks . | . . . . Terminals . | . . . . Fabricators . | . . . . Repair Stations . | . . . . Recycling Units . | . . . . Scanalyzers . | . . . . Garrison Access . | . . . . Data Cores Recovered . | . . . . Used . | . . . . Hacking Detections 5 | . 5 . . Full Trace Events 3 | . 3 . . Feedback Events . | . . . . Feedback Blocked . | . . . . Robot Schematics Acquired . | . . . . Robots Built . | . . . . Authchips . | . . . . Time . | . . . . Total Robot Build Rating . | . . . . Part Schematics Acquired 1 | . 1 . . Parts Built . | . . . . Authchips . | . . . . Time . | . . . . Total Part Build Rating . | . . . . Parts Repaired 1 | . 1 . . Time 26 | . 26 . . Parts Recycled . | . . . . Recycled Matter 11 | . 11 . . Retrieved Matter . | . . . . Retrieved Components . | . . . . Parts Scanalyzed . | . . . . Part Schematics Acquired . | . . . . Parts Damaged . | . . . . Bothacking | -11 -10 -10 -10 ------------ Run | Yrd Mat Min Sub Used RIF Installer . | . . . . Robots Hacked . | . . . . Non-combat . | . . . . Combat . | . . . . Robot Hacks Applied . | . . . . Relay Couplers Released . | . . . . Fabnet Peak Effective % . | . . . . Robots Rewired . | . . . . Allies Hacked . | . . . . Hacks Repelled . | . . . . Allies | -11 -10 -10 -10 -------- Run | Yrd Mat Min Sub Total Allies . | . . . . Largest Group . | . . . . Highest-Rated Group . | . . . . Highest-Rated Ally . | . . . . Total Orders . | . . . . Ally Attacks . | . . . . Total Damage . | . . . . Kills . | . . . . Allies Corrupted . | . . . . Allies Melted . | . . . . Intel | -11 -10 -10 -10 ------- Run | Yrd Mat Min Sub Robot Analysis Total 4 | . 4 . . Derelict Logs Recovered 2 | . . 1 1 Drone Launches . | . . . . Drone Recoveries . | . . . . Exploration | -11 -10 -10 -10 ------------- Run | Yrd Mat Min Sub Turns Passed 2884 | 73 1510 265 1036 Spaces Moved 1099 | 44 607 86 362 Core 20 | 19 . . 1 Treads 729 | 25 607 86 11 Legs 350 | . . . 350 Wheels . | . . . . Hover . | . . . . Flight . | . . . . Fastest Speed 50 | 50 160 240 240 Average Speed 225 | 132 208 240 261 Slowest Speed 800 | 160 240 240 800 Overloaded Moves . | . . . . Propulsion Burnouts . | . . . . Robots Hopped . | . . . . Cave-ins Triggered . | . . . . Exploration Rate (%) 33 | 4 84 26 21 Regions Visited 3 Branch Regions 2 Pre-discovered Areas 4 | . . 2 2 Known Exits Taken . | . . . . Unknown Exits Taken 3 | 1 1 1 . Scrap Searched 3 | . . . 3 Spaces Dug . | . . . . Terrain Destroyed 16 | . . 11 5 Melee . | . . . . Projectile . | . . . . AOE 16 | . . 11 5 Terrain Rammed . | . . . . Walls Destroyed . | . . . . Machines Disabled . | . . . . Actions | -11 -10 -10 -10 --------- Run | Yrd Mat Min Sub Total 1364 | 59 754 135 416 Wait 136 | . 73 43 20 Move 1096 | 43 606 85 362 Hop . | . . . . Pick Up 32 | 10 17 . 5 Fast Attach 1 | . 1 . . Attach 13 | 6 1 . 6 Detach . | . . . . Swap 3 | . 1 1 1 Drop 5 | . 5 . . Fire 77 | . 49 6 22 Melee . | . . . . Ram . | . . . . Kick . | . . . . Crush 1 | . 1 . . Escape Stasis . | . . . . Rewire . | . . . . Trap . | . . . . Miscellaneous . | . . . . Route ------- -11/Scrapyard -10/Materials (discovered 3 exits: [*Mat x2] / [*Min]) -10/Mines -10/Subcaves History --------- Turn | Location | Event 7 | -11/Scrapyard | Discovered new exit (range 15) 74 | -11/Scrapyard | Entered Materials 187 | -10/Materials | Discovered new exit (range 10) 315 | -10/Materials | Build established: Mutant 507 | -10/Materials | Repaired Assault Rifle 588 | -10/Materials | Discovered new exit (range 16) 693 | -10/Materials | Discovered new exit (range 14) 1584 | -10/Materials | Entered Mines 1585 | -10/Mines | Learned location of Storage (-8) 1812 | -10/Mines | Learned location of Mines (-9) 1833 | -10/Mines | Discovered new exit (range 8) 1849 | -10/Mines | Entered Subcaves 1875 | -10/Subcaves | Core integrity fell below 50% 1905 | -10/Subcaves | Core integrity fell below 20% 1931 | -10/Subcaves | Lost 6 parts (1p2n1u2w) 2337 | -10/Subcaves | Visited Clippyterm 2345 | -10/Subcaves | Learned location of Deep Caves (-7) 2881 | -10/Subcaves | Disturbed a concealed Subdweller 2885 | -10/Subcaves | Destroyed by XJ-KFI(R) with Subdweller Beam Cannon Last Messages --------------- 02588_ Found Battle Rifle. 02588_ Found Slug Cannon. 02588_ Found 63 Matter. 02589_ Acquired 10 matter. 02596_ Subatomizers dissect the Battle Rifle. 02596_ Acquired Slug Cannon. 02599_ Searching scrap... 02599_ Found Mak. Light Armor Plating. 02599_ Found Sub. Machine Gun. 02599_ Found 41 Matter. 02605_ Acquired Mak. Light Armor Plating. 02608_ Subatomizers dissect the Battle Rifle. 02608_ Acquired Sub. Machine Gun. 02614_ Searching scrap... 02614_ Found Ripper. 02614_ Found Sub. Shrapnel Launcher. 02614_ Found 58 Matter. 02623_ Subatomizers dissect the Ripper. 02881_ XJ-KFI(R) angrily emerges from the Twisted Machinery. Map ----- +----------------------------------------------------+ | ??????#### "#?????????????????????? | | ??????# " "#####?????##########??? | | ??????## ! "# #??#### ## #""##?? | | ???????# #??# " #?? | | ???????# #### ### ""#?? | | ???????## "" ## # ####?# ""#?? | | ????????# ### #???## "#?? | | ????????# " " ########?## ## ##????# #?? | | ????????##########?????????### #######?????# ##?? | | ?????????????????????????????###???????????## #??? | | ???????????????????????????????????????????## #??? | | ???????????????????????????????????????????# #??? | | ???????????????????????????????????????????## #??? | | ???????????????????????????????????????????# #??? | | ???????????????????????????????????????????# ##?? | | ????????????????????????????????????#####?## #?? | | ????????????????????????????????????#"""###" #?? | | ????????????????????????????????????#"" ##"" ##?? | | ????????###?????????????#?#?????????#"X ##?? | | ???????## ##????????????$#$?????????#"" ## #?? | | ???????# #????????????& ?????????#"""## #?? | | ####?### ##????????????